bitfinex-derivatives/quotes_BTCF0:USTF0_20210109
["timestamp","ask_amount","ask_price","bid_price","bid_amount"]
[1610170728231,0.67139499,39791.0,39783.0,3.03704294]
[1610170728434,0.67160428,39792.0,39784.0,0.01571674]
[1610170728832,0.67187707,39795.0,39784.0,0.01571674]
[1610170729031,0.67187707,39795.0,39784.0,0.05237707]
[1610170729233,0.67174899,39797.0,39791.0,6.0]
[1610170729432,0.67174899,39797.0,39794.0,0.5703]
[1610170729634,0.67140135,39799.0,39796.0,0.13632608]
[1610170730035,0.67146035,39798.0,39797.0,0.01571514]
[1610170730634,0.36847365,39798.0,39797.0,0.01571514]
[1610170730835,0.77751574,39803.0,39797.0,0.01571514]
[1610170731036,0.77751574,39803.0,39799.0,3.9258]
[1610170731235,0.10675,39803.0,39799.0,3.9258]
[1610170731636,0.10675,39803.0,39802.0,0.13632608]
[1610170732037,0.10675,39803.0,39802.0,0.1520388]
[1610170732840,0.10675,39803.0,39802.0,0.13656365]
[1610170733239,0.10675,39803.0,39802.0,1.13656365]
[1610170733642,0.09525,39803.0,39802.0,1.13656365]
[1610170735640,0.54852661,39806.0,39802.0,1.13656365]
[1610170735839,0.5483054,39808.0,39802.0,1.13656365]
[1610170736038,0.5483054,39808.0,39803.0,0.00023755]
[1610170736242,0.54828895,39809.0,39803.0,0.00023755]
[1610170736740,0.53628895,39809.0,39803.0,0.00023755]
[1610170736942,0.36841463,39808.0,39803.0,0.00023755]
[1610170737140,0.47876463,39808.0,39803.0,0.00023755]
[1610170737341,0.11035,39808.0,39803.0,0.00023755]
[1610170737741,0.11035,39808.0,39807.0,0.13632608]
[1610170738141,0.11035,39808.0,39807.0,0.13656363]
[1610170739944,0.09805,39808.0,39807.0,0.13656363]
[1610170741247,0.09805,39808.0,39807.0,1.13656363]
[1610170742245,0.66902327,39816.0,39807.0,1.13656363]
[1610170742445,0.66891732,39820.0,39807.0,1.13656363]
[1610170743045,0.65701732,39820.0,39808.0,0.00023752]
[1610170743246,0.36835471,39819.0,39808.0,0.00023752]
[1610170743644,0.46564471,39819.0,39818.0,0.13632608]
[1610170743850,0.09729,39819.0,39818.0,0.13632608]
[1610170744245,0.09729,39819.0,39818.0,0.1365636]
[1610170745248,0.09729,39819.0,39818.0,1.1365636]
[1610170746049,0.08579,39819.0,39818.0,1.1365636]
[1610170747249,0.08579,39819.0,39818.0,0.13632608]
[1610170748652,0.13632608,39823.0,39818.0,0.13632608]
[1610170748954,0.12482608,39823.0,39818.0,0.13632608]
[1610170749355,0.1556,39829.0,39822.0,1.0]
[1610170749754,0.13632608,39828.0,39827.0,0.13632608]
[1610170749954,0.60575065,39828.0,39827.0,0.13632608]
[1610170750356,0.23742608,39828.0,39822.0,1.0]
[1610170750556,0.3683332,39827.0,39822.0,1.0]
[1610170751256,0.3683332,39827.0,39826.0,1.0]
[1610170752058,0.3563332,39827.0,39826.0,1.0]
[1610170753257,0.3563332,39827.0,39823.0,0.13632608]
[1610170753857,0.13632608,39824.0,39823.0,0.13632608]
[1610170754457,0.9595493,39824.0,39823.0,0.1365636]
[1610170755257,0.9476493,39824.0,39823.0,0.00023752]
[1610170755658,0.9476493,39824.0,39799.0,0.01570914]
[1610170755862,1.37580967,39824.0,39799.0,0.01570914]
[1610170756059,3.0484,39815.0,39799.0,0.01547162]
[1610170756260,0.45489126,39814.0,39800.0,0.00023754]
[1610170756662,0.45493241,39812.0,39800.0,0.00023754]
[1610170756858,0.45493241,39812.0,39798.0,0.00023754]
[1610170757059,0.45493241,39812.0,39801.0,0.00023756]
[1610170757259,0.4549427,39811.0,39799.0,0.00023756]
[1610170757458,0.4549427,39811.0,39802.0,0.00023756]
[1610170757659,0.45495718,39812.0,39802.0,0.00023756]
[1610170757858,0.45495718,39812.0,39808.0,0.13632608]
[1610170758058,0.45496765,39811.0,39808.0,0.13632608]
[1610170758259,0.44346765,39811.0,39809.0,0.00023756]
[1610170758859,0.36843325,39814.0,39809.0,0.00023756]
[1610170759059,0.36843325,39814.0,39808.0,0.13632608]
[1610170759261,0.08237,39815.0,39809.0,1.0]
[1610170759459,0.08237,39815.0,39809.0,1.00023757]
[1610170759660,0.36844054,39813.0,39810.0,0.00023757]
[1610170759858,3.89622608,39811.0,39810.0,0.00023757]
[1610170760660,5.57600252,39811.0,39810.0,0.00023757]
[1610170761260,7.07600252,39811.0,39810.0,0.00023757]
[1610170761460,7.06360252,39811.0,39810.0,0.00023757]
[1610170761862,8.45975035,39811.0,39784.0,0.13632608]
[1610170762261,0.54636321,39796.0,39785.0,0.00023763]
[1610170762660,0.54643975,39795.0,39785.0,0.00023763]
[1610170763060,0.91497915,39795.0,39785.0,0.00023763]
[1610170763862,0.64201034,39796.0,39788.0,0.13632608]
[1610170764463,0.91504898,39795.0,39789.0,0.00023763]
[1610170764760,0.91512291,39794.0,39789.0,0.00023763]
[1610170765162,0.91510354,39795.0,39789.0,0.00023763]
[1610170765864,0.13632608,39790.0,39789.0,0.00023763]
[1610170767267,0.13632608,39790.0,39789.0,1.00023763]
[1610170767466,0.64217204,39796.0,39789.0,1.00023763]
[1610170767666,0.63037204,39796.0,39789.0,1.00023763]
[1610170768067,0.0837,39796.0,39790.0,0.00023967]
[1610170768468,0.91528423,39795.0,39790.0,0.00023967]
[1610170768667,2.41528423,39795.0,39790.0,0.00023967]
[1610170768868,4.0035,39790.0,39789.0,1.0]
[1610170769268,4.0035,39790.0,39760.0,3.6276]
[1610170769269,6.14036304,39790.0,39760.0,3.6276]
[1610170769670,0.54695437,39784.0,39761.0,0.00023975]
[1610170770067,0.5469734,39780.0,39764.0,0.13632608]
[1610170770267,0.6348334,39780.0,39764.0,0.13632608]
[1610170770468,0.54699097,39779.0,39765.0,0.00023975]
[1610170770667,0.53509097,39779.0,39765.0,0.00023975]
[1610170770869,0.08786,39780.0,39765.0,0.00023975]
[1610170771269,0.08786,39780.0,39767.0,1.0]
[1610170771669,0.08786,39780.0,39768.0,0.00023975]
[1610170772070,0.13632608,39769.0,39768.0,0.00023975]
[1610170772272,0.11815,39769.0,39768.0,0.00023975]
[1610170773269,0.11815,39769.0,39768.0,1.00023975]
[1610170773874,0.09445,39769.0,39768.0,1.00023975]
[1610170774072,0.23077608,39769.0,39768.0,1.13656583]
[1610170775276,0.23077608,39769.0,39768.0,0.13656583]
[1610170776978,0.23047608,39769.0,39768.0,0.13656583]
[1610170777177,0.23047608,39769.0,39768.0,1.13656583]
[1610170778379,0.09415,39769.0,39768.0,1.13656583]
[1610170778681,0.08786,39780.0,39768.0,1.13656583]
[1610170779078,0.55296456,39789.0,39768.0,1.13656583]
[1610170779079,0.66805272,39787.0,39769.0,0.00023972]
[1610170779479,1.03666219,39787.0,39769.0,0.00023972]
[1610170779982,0.66809831,39785.0,39775.0,0.13632608]
[1610170780180,0.65599831,39785.0,39769.0,0.00023972]
[1610170780380,0.3685956,39784.0,39776.0,0.00023972]
[1610170780580,0.5613,39781.0,39770.0,0.00023972]
[1610170780781,0.64207,39781.0,39770.0,0.00023972]
[1610170780981,0.64207,39781.0,39761.0,0.01656797]
[1610170781181,0.64207,39781.0,39779.0,1.0]
[1610170781984,0.13632608,39780.0,39779.0,1.0]
[1610170782587,0.13632608,39780.0,39779.0,1.00023974]
[1610170783086,0.12482608,39780.0,39779.0,1.00023974]
[1610170783287,0.12482608,39780.0,39779.0,0.00023974]
[1610170783488,0.49347382,39780.0,39779.0,0.00023974]
[1610170783789,0.49347382,39780.0,39775.0,0.00023974]
[1610170783989,0.13632608,39776.0,39775.0,0.00023974]
[1610170784192,3.4079,39775.0,39774.0,1.0]
[1610170784590,3.4079,39775.0,39774.0,1.00023976]
[1610170785290,3.4079,39775.0,39774.0,0.00023976]
[1610170785691,3.4079,39775.0,39763.0,0.01657142]
[1610170785891,3.4079,39775.0,39774.0,0.00023976]
[1610170786291,3.3956,39775.0,39764.0,0.00023976]
[1610170786492,3.76430234,39775.0,39774.0,0.00023978]
[1610170786692,3.76430234,39775.0,39765.0,0.00023978]
[1610170786894,3.76430234,39775.0,39774.0,0.00023978]
[1610170787293,0.36871189,39774.0,39758.0,1.0]
[1610170787696,0.36871189,39774.0,39759.0,0.01657387]
[1610170788092,0.13632608,39760.0,39759.0,0.01657387]
[1610170789092,0.13632608,39760.0,39759.0,0.01633408]
[1610170789293,0.13632608,39760.0,39759.0,0.01657387]
[1610170789594,0.12442608,39760.0,39759.0,0.01681366]
[1610170789794,0.12442608,39760.0,39759.0,0.00023979]
[1610170790192,0.12442608,39760.0,39759.0,0.01681331]
[1610170790393,0.12442608,39760.0,39759.0,0.00023979]
[1610170790592,0.12442608,39760.0,39759.0,0.00047958]
[1610170790994,0.12442608,39760.0,39759.0,0.00023979]
[1610170791194,0.12442608,39760.0,39759.0,0.00047958]
[1610170791396,0.12442608,39760.0,39759.0,0.00023979]
[1610170791595,0.12442608,39760.0,39759.0,0.00047958]
[1610170792594,0.11242608,39760.0,39759.0,0.00023979]
[1610170792794,0.11242608,39760.0,39759.0,0.00047959]
[1610170795200,0.11242608,39760.0,39759.0,1.00047959]
[1610170795799,0.11242608,39760.0,39759.0,1.01681492]
[1610170796000,0.09942608,39760.0,39759.0,1.01681492]
[1610170797203,0.09942608,39760.0,39759.0,0.00047959]
[1610170797603,3.85462608,39760.0,39759.0,0.00047959]
[1610170798406,3.85462608,39760.0,39759.0,0.0002398]
[1610170798807,3.85462608,39760.0,39739.0,0.01657867]
[1610170799010,5.21040914,39760.0,39759.0,0.00023985]
[1610170799206,5.21040914,39760.0,39743.0,1.0]
[1610170799407,0.45391441,39758.0,39743.0,1.0]
[1610170799608,0.45391441,39758.0,39744.0,0.0165796]
[1610170800009,0.13632608,39745.0,39744.0,0.0165796]
[1610170800210,0.60332608,39745.0,39744.0,0.0165796]
[1610170800411,0.68097608,39745.0,39744.0,0.0165796]
[1610170800609,0.68097608,39745.0,39744.0,0.00023985]
[1610170801610,0.68097608,39745.0,39743.0,0.0165815]
[1610170802010,0.68097608,39745.0,39744.0,0.00023988]
[1610170802210,0.66857608,39745.0,39744.0,0.00023988]
[1610170802410,0.66857608,39745.0,39743.0,0.00023988]
[1610170802609,3.4548,39744.0,39743.0,0.00023988]
[1610170802809,3.4548,39744.0,39742.0,1.0]
[1610170803010,3.4548,39744.0,39743.0,0.00023995]
[1610170803812,4.81552965,39744.0,39721.0,0.016592]
[1610170804011,4.81552965,39744.0,39743.0,0.00024001]
[1610170804211,4.81552965,39744.0,39722.0,0.00024001]
[1610170804411,0.45081992,39741.0,39722.0,0.00024001]
[1610170804614,0.45052224,39740.0,39721.0,0.01635199]
[1610170804811,0.45052224,39740.0,39723.0,0.00024001]
[1610170805012,0.45052224,39740.0,39720.0,1.0]
[1610170805211,0.45052224,39740.0,39710.0,0.13632608]
[1610170805412,0.45006175,39738.0,39710.0,0.13632608]
[1610170805611,0.43716175,39738.0,39711.0,0.00024001]
[1610170805813,0.53957355,39737.0,39711.0,0.00024001]
[1610170806014,0.13632608,39712.0,39711.0,0.00024001]
[1610170806216,0.25887608,39712.0,39711.0,0.00024001]
[1610170807314,0.25887608,39712.0,39711.0,1.00024001]
[1610170807714,0.25887608,39712.0,39711.0,1.0]
[1610170807913,0.25887608,39712.0,39711.0,1.00024005]
[1610170808715,0.24697608,39712.0,39711.0,1.00024005]
[1610170809317,0.24697608,39712.0,39711.0,0.00024005]
[1610170809518,0.24697608,39712.0,39710.0,0.13632608]
[1610170809718,0.24697608,39712.0,39711.0,0.00024006]
[1610170810116,0.24697608,39712.0,39710.0,0.13632608]
[1610170811320,0.24697608,39712.0,39711.0,1.0]
[1610170811819,0.23517608,39712.0,39711.0,1.0]
[1610170812320,0.12255,39712.0,39711.0,1.00024006]
[1610170812519,4.1924,39714.0,39711.0,1.00024006]
[1610170812920,4.1924,39714.0,39712.0,0.00024006]
[1610170813521,4.1924,39714.0,39710.0,0.13632608]
[1610170813923,0.09685,39716.0,39710.0,0.13632608]
[1610170814122,0.09685,39716.0,39715.0,0.13632608]
[1610170814823,0.08525,39716.0,39715.0,0.13632608]
[1610170817829,0.07365,39716.0,39715.0,0.1365661]
[1610170818632,0.07365,39716.0,39715.0,3.7697661]
[1610170818838,0.09986,39737.0,39715.0,3.7697661]
[1610170819038,0.54170601,39743.0,39715.0,3.7697661]
[1610170819236,0.2777,39744.0,39715.0,3.7697661]
[1610170819237,0.2777,39744.0,39716.0,0.00024]
[1610170819435,0.07765,39745.0,39736.0,6.0]
[1610170819634,0.07765,39745.0,39741.0,3.8862]
[1610170819832,0.54308988,39753.0,39741.0,3.8862]
[1610170820033,0.54353775,39758.0,39741.0,3.8862]
[1610170820235,0.54353775,39758.0,39752.0,0.13632608]
[1610170820432,0.66429037,39761.0,39752.0,0.13632608]
[1610170820433,0.54419464,39761.0,39752.0,0.13632608]
[1610170820631,0.54419464,39761.0,39756.0,3.1986]
[1610170820833,0.09755,39762.0,39756.0,3.1986]
[1610170821031,0.54417601,39763.0,39756.0,3.1986]
[1610170821230,0.2977,39772.0,39756.0,3.1986]
[1610170821231,0.54413303,39765.0,39756.0,3.1986]
[1610170821630,0.66501791,39768.0,39756.0,3.1986]
[1610170821631,0.54430239,39768.0,39756.0,3.1986]
[1610170822031,0.54416575,39777.0,39757.0,0.00023991]
[1610170822231,0.54416575,39777.0,39767.0,0.13632608]
[1610170822431,0.36873647,39778.0,39767.0,0.13632608]
[1610170822432,0.54413125,39778.0,39772.0,3.5715]
[1610170822830,0.13632608,39784.0,39772.0,3.5715]
[1610170822831,0.5441951,39780.0,39772.0,3.5715]
[1610170823233,0.54413104,39786.0,39779.0,6.0]
[1610170823432,0.54413104,39786.0,39779.0,6.4392]
[1610170823634,0.54420271,39788.0,39779.0,6.4392]
[1610170824037,0.54419627,39790.0,39779.0,6.4392]
[1610170824233,0.53209627,39790.0,39787.0,0.13632608]
[1610170824434,0.66518104,39792.0,39787.0,0.13632608]
[1610170824835,0.66517504,39793.0,39787.0,0.13632608]
[1610170825234,0.66517504,39793.0,39792.0,1.0]
[1610170825435,0.66516767,39794.0,39792.0,1.0]
[1610170825836,0.36862984,39793.0,39792.0,1.0]
[1610170826035,0.48484984,39793.0,39792.0,1.0]
[1610170826235,0.78152041,39793.0,39792.0,1.0]
[1610170826639,1.9063838,39793.0,39792.0,0.99846396]
[1610170826836,1.53773327,39793.0,39782.0,0.13632608]
[1610170827237,1.89457572,39793.0,39782.0,0.13632608]
[1610170827639,0.66564649,39787.0,39782.0,0.13632608]
[1610170827839,0.66564649,39787.0,39781.0,3.1556]
[1610170828039,0.47306245,39793.0,39781.0,3.1556]
[1610170828040,0.66568751,39784.0,39781.0,3.1556]
[1610170828239,0.13632608,39782.0,39781.0,3.1556]
[1610170828440,0.80205778,39782.0,39781.0,3.1556]
[1610170828840,1.17076245,39782.0,39781.0,3.1556]
[1610170829243,0.80205778,39782.0,39781.0,3.1556]
[1610170829641,1.79133364,39782.0,39781.0,3.1556]
[1610170829948,1.03446001,39782.0,39781.0,3.1556]
[1610170830145,0.80205778,39782.0,39781.0,3.29192608]
[1610170830343,0.79025778,39782.0,39781.0,3.29192608]
[1610170830545,1.15894614,39782.0,39781.0,3.29192608]
[1610170830842,0.50501444,39782.0,39781.0,3.29192608]
[1610170831845,0.13632608,39782.0,39781.0,3.29192608]
[1610170833042,0.50499966,39782.0,39781.0,3.1556]
[1610170833444,0.49309966,39782.0,39781.0,3.1556]
[1610170834145,0.49309966,39782.0,39781.0,3.29192608]
[1610170835347,0.49309966,39782.0,39781.0,0.13632608]
[1610170835947,0.94730096,39782.0,39781.0,0.13632608]
[1610170836552,0.93550096,39782.0,39764.0,2.9005]
[1610170836951,0.93550096,39782.0,39773.0,1.0]
[1610170837149,0.45418409,39778.0,39773.0,1.0]
[1610170837551,0.45427262,39779.0,39773.0,1.0]
[1610170837952,0.45422808,39778.0,39773.0,1.0]
[1610170838152,0.45422808,39778.0,39777.0,0.13632608]
[1610170838354,0.45422574,39782.0,39777.0,0.13632608]
[1610170839056,0.45425348,39781.0,39777.0,0.13632608]
[1610170839256,0.45425348,39781.0,39779.0,1.0]
[1610170839458,0.44247966,39780.0,39779.0,1.0]
[1610170839856,0.81114261,39780.0,39779.0,1.0]
[1610170840155,0.94746869,39780.0,39779.0,1.0]
[1610170840356,0.57880574,39780.0,39779.0,1.0]
[1610170840655,0.94744715,39780.0,39779.0,1.0]
[1610170840855,0.94744715,39780.0,39777.0,0.13632608]
[1610170841056,0.57880574,39780.0,39777.0,0.13632608]
[1610170841857,0.13632608,39780.0,39777.0,0.13632608]
[1610170842557,0.12452608,39780.0,39777.0,0.13632608]
[1610170842960,0.12452608,39780.0,39779.0,1.0]
[1610170844860,0.12452608,39780.0,39777.0,0.13632608]
[1610170845759,0.11262608,39780.0,39777.0,0.13632608]
[1610170847663,0.01523228,39779.0,39777.0,0.13632608]
[1610170848463,0.12785917,39780.0,39777.0,0.13632608]
[1610170848664,0.11625917,39780.0,39778.0,0.01554742]
[1610170848865,0.11625917,39780.0,39778.0,1.00023732]
[1610170849063,0.11625917,39780.0,39779.0,0.01554714]
[1610170849664,0.10102608,39780.0,39779.0,0.01554714]
[1610170849866,0.01522248,39781.0,39779.0,0.01554714]
[1610170850265,0.01522943,39782.0,39779.0,0.01554714]
[1610170850566,0.09403,39784.0,39779.0,0.01554714]
[1610170850765,0.01524423,39785.0,39779.0,0.01554714]
[1610170850966,0.01524659,39788.0,39779.0,0.01554714]
[1610170851367,0.01525529,39791.0,39778.0,0.0155433]
[1610170851868,0.00325529,39791.0,39778.0,0.0155433]
[1610170852268,0.00325529,39791.0,39790.0,0.13632608]
[1610170852667,0.26002,39793.0,39790.0,0.13632608]
[1610170852868,0.26002,39793.0,39790.0,1.15186924]
[1610170853068,0.26002,39793.0,39791.0,0.00023727]
[1610170853469,0.10442,39793.0,39791.0,0.00023727]
[1610170854069,0.54364891,39796.0,39791.0,0.00023727]
[1610170854271,0.54364891,39796.0,39795.0,0.13632608]
[1610170854571,0.54366189,39797.0,39795.0,0.13656333]
[1610170854973,0.54375795,39796.0,39795.0,0.13502768]
[1610170855172,0.54375795,39796.0,39795.0,0.13479043]
[1610170855372,0.64429795,39796.0,39795.0,0.13502768]
[1610170855573,0.10054,39796.0,39795.0,0.13502768]
[1610170856174,0.46908899,39796.0,39795.0,0.13502768]
[1610170856573,0.10054,39796.0,39795.0,0.13502768]
[1610170856775,0.10054,39796.0,39795.0,1.13502768]
[1610170857877,0.08884,39796.0,39795.0,1.13502768]
[1610170860076,0.08884,39796.0,39795.0,1.13479043]
[1610170860278,0.13632608,39800.0,39795.0,1.13502766]
[1610170860479,0.13632608,39800.0,39795.0,1.71172766]
[1610170860679,0.13632608,39800.0,39796.0,0.00023723]
[1610170861079,0.12462608,39800.0,39796.0,0.00023723]
[1610170862279,0.12462608,39800.0,39799.0,0.13632608]
[1610170862882,0.49315757,39800.0,39799.0,1.13632608]
[1610170863381,0.12462608,39800.0,39799.0,1.13632608]
[1610170863781,0.49315502,39800.0,39799.0,1.13632608]
[1610170864183,0.48105502,39800.0,39799.0,1.13632608]
[1610170864784,0.48105502,39800.0,39799.0,1.13656331]
[1610170864984,0.48105502,39800.0,39799.0,0.13656331]
[1610170865284,0.36852894,39800.0,39799.0,0.13479058]
[1610170865884,0.36852894,39800.0,39799.0,0.13502781]
[1610170866086,0.66425793,39804.0,39799.0,0.13479058]
[1610170866286,0.66425793,39804.0,39803.0,0.13632608]
[1610170866485,0.75480576,39807.0,39803.0,0.13632608]
[1610170866886,1.03299127,39804.0,39803.0,0.13632608]
[1610170867088,0.66447428,39804.0,39803.0,0.13632608]
[1610170867285,0.65257428,39804.0,39803.0,0.13632608]
[1610170867486,1.02109052,39804.0,39803.0,0.13632608]
[1610170867886,0.65257428,39804.0,39803.0,0.13632608]
[1610170868486,0.36850601,39808.0,39803.0,0.13632608]
[1610170868688,1.12412885,39808.0,39803.0,0.13632608]
[1610170869791,0.4536685,39804.0,39803.0,0.13632608]
[1610170869991,0.5412985,39804.0,39803.0,0.13632608]
[1610170870192,0.5412985,39804.0,39803.0,3.68172608]
[1610170870392,0.5294985,39804.0,39803.0,3.6819633]
[1610170870896,0.08763,39804.0,39803.0,4.6819633]
[1610170871094,0.37806,39812.0,39803.0,4.6819633]
[1610170871695,0.37806,39812.0,39804.0,0.00023717]
[1610170871995,0.36842709,39811.0,39804.0,0.00023717]
[1610170872399,0.36842709,39811.0,39810.0,0.13632608]
[1610170872995,0.36842709,39811.0,39810.0,0.13656325]
[1610170873397,0.35652709,39811.0,39810.0,0.13656325]
[1610170875200,0.35652709,39811.0,39810.0,0.13632608]
[1610170875402,0.35652709,39811.0,39810.0,0.13656326]
[1610170875601,0.35652709,39811.0,39810.0,0.13502812]
[1610170876202,0.35652709,39811.0,39810.0,0.57712812]
[1610170876602,0.34472709,39811.0,39810.0,0.57712812]
[1610170879703,0.33292709,39811.0,39810.0,0.57712812]
[1610170880305,1.64119855,39811.0,39810.0,0.57712812]
[1610170882308,1.77752463,39811.0,39810.0,0.57712812]
[1610170882708,1.76582463,39811.0,39810.0,0.57712812]
[1610170885611,1.75422463,39811.0,39810.0,0.57712812]
[1610170886214,1.75422463,39811.0,39810.0,0.57559304]
[1610170886912,1.75422463,39811.0,39810.0,1.57559304]
[1610170887613,2.42281091,39811.0,39810.0,1.57559304]
[1610170888614,2.41131091,39811.0,39810.0,1.57559304]
[1610170888817,2.41131091,39811.0,39810.0,0.57559304]
[1610170891919,2.39901091,39811.0,39810.0,0.57559304]
[1610170895024,2.38701091,39811.0,39810.0,0.57559304]
[1610170896725,2.25068483,39811.0,39810.0,0.57559304]
[1610170896931,2.25068483,39811.0,39810.0,0.59131984]
[1610170897528,1.49008665,39811.0,39810.0,0.59131984]
[1610170898027,1.47828665,39811.0,39810.0,0.59131984]
[1610170900530,1.93525931,39811.0,39810.0,0.59131984]
[1610170900931,1.93525931,39811.0,39810.0,1.59131984]
[1610170901132,1.92345931,39811.0,39810.0,1.59131984]
[1610170902835,1.92345931,39811.0,39810.0,0.59131984]
[1610170903235,1.92345931,39811.0,39810.0,0.62831648]
[1610170903637,1.25487303,39811.0,39810.0,0.62831648]
[1610170904236,1.24327303,39811.0,39810.0,0.62831648]
[1610170904436,1.24327303,39811.0,39810.0,0.59131984]
[1610170904840,1.00464594,39811.0,39810.0,0.59131984]
[1610170905237,1.37295443,39811.0,39810.0,0.59131984]
[1610170906542,1.37295443,39811.0,39810.0,0.14921984]
[1610170906943,2.0437646,39811.0,39810.0,0.14921984]
[1610170907144,2.0321646,39811.0,39810.0,0.14921984]
[1610170907745,2.0321646,39811.0,39810.0,0.01596398]
[1610170908045,2.0321646,39811.0,39798.0,0.05295639]
[1610170908246,2.79468843,39811.0,39798.0,0.05295639]
[1610170908445,2.79468843,39811.0,39805.0,0.13632608]
[1610170908646,0.67131943,39806.0,39805.0,0.13632608]
[1610170909047,1.12909779,39806.0,39805.0,0.13632608]
[1610170909246,1.12909779,39806.0,39805.0,0.15229062]
[1610170910248,1.49748011,39806.0,39805.0,0.15229062]
[1610170910447,1.48518011,39806.0,39805.0,0.15229062]
[1610170910648,1.88016152,39806.0,39805.0,0.15229062]
[1610170910850,1.88016152,39806.0,39805.0,1.15229062]
[1610170911552,2.24856595,39806.0,39805.0,1.15229062]
[1610170911849,1.88016152,39806.0,39805.0,1.15229062]
[1610170912952,1.88016152,39806.0,39805.0,0.15229062]
[1610170913553,2.23675607,39806.0,39805.0,0.15229062]
[1610170913753,1.77897771,39806.0,39805.0,0.15229062]
[1610170913953,1.47389764,39806.0,39805.0,0.13632608]
[1610170914153,1.47389764,39806.0,39805.0,0.15228956]
[1610170914756,1.10550309,39806.0,39805.0,0.15228956]
[1610170914956,1.10550309,39806.0,39805.0,1.15228956]
[1610170916456,1.09360309,39806.0,39805.0,1.15228956]
[1610170916658,1.45006283,39806.0,39805.0,1.15228956]
[1610170916858,1.45006283,39806.0,39805.0,0.15228956]
[1610170917257,4.62310309,39806.0,39805.0,0.15228956]
[1610170917658,5.75557173,39806.0,39805.0,0.15228956]
[1610170918059,6.30818405,39806.0,39805.0,0.15228956]
[1610170918459,6.44451013,39806.0,39805.0,0.15228956]
[1610170919459,2.90311013,39806.0,39805.0,0.15228956]
[1610170919659,2.90281013,39806.0,39805.0,0.15228956]
[1610170920063,3.20629157,39806.0,39805.0,0.15228956]
[1610170921061,3.80889157,39806.0,39805.0,0.15228956]
[1610170921261,3.80889157,39806.0,39805.0,0.135029]
[1610170923265,3.79549157,39806.0,39805.0,0.135029]
[1610170923465,3.79549157,39806.0,39805.0,0.00023817]
[1610170923865,4.86481155,39806.0,39795.0,0.01596925]
[1610170924065,4.26221155,39806.0,39805.0,0.00023824]
[1610170924266,4.55700309,39806.0,39805.0,0.00023824]
[1610170924465,4.09871943,39806.0,39796.0,0.00023824]
[1610170924666,3.594,39806.0,39805.0,0.00023824]
[1610170924865,3.594,39806.0,39797.0,0.13656432]
[1610170925066,7.66140662,39806.0,39797.0,0.13656432]
[1610170925265,7.66140662,39806.0,39805.0,0.00023824]
[1610170925468,5.0315264,39806.0,39798.0,0.01596912]
[1610170925667,5.0315264,39806.0,39805.0,0.00023824]
[1610170925867,4.66303367,39806.0,39805.0,0.00023824]
[1610170926067,4.66303367,39806.0,39799.0,0.00023824]
[1610170926267,6.5810347,39806.0,39805.0,0.00023824]
[1610170926466,6.5810347,39806.0,39787.0,0.00023824]
[1610170926666,6.5810347,39806.0,39805.0,0.00023824]
[1610170926867,4.65149568,39806.0,39805.0,0.00023824]
[1610170927069,4.65149568,39806.0,39797.0,0.01596907]
[1610170927268,7.44140659,39806.0,39805.0,0.00023824]
[1610170927467,7.44140659,39806.0,39801.0,0.01573086]
[1610170927468,7.44140659,39806.0,39798.0,0.01596901]
[1610170927669,6.02888763,39806.0,39798.0,0.01596901]
[1610170927867,6.02888763,39806.0,39797.0,0.01596894]
[1610170928069,1.22242226,39799.0,39796.0,0.13632608]
[1610170928268,1.22242226,39799.0,39798.0,0.00023824]
[1610170928468,0.85563448,39801.0,39798.0,0.00023824]
[1610170928668,0.13632608,39799.0,39797.0,0.01596905]
[1610170928868,0.13632608,39799.0,39797.0,0.01573081]
[1610170929069,1.2226932,39798.0,39797.0,0.01573081]
[1610170929268,0.13632608,39799.0,39797.0,0.01573081]
[1610170929469,1.59134611,39798.0,39797.0,0.01596905]
[1610170929669,0.13632608,39799.0,39797.0,0.00023824]
[1610170929868,1.59132476,39798.0,39797.0,0.00023824]
[1610170930269,1.59132476,39798.0,39785.0,0.01596887]
[1610170930470,0.36848381,39798.0,39797.0,0.00023824]
[1610170930672,0.13632608,39799.0,39796.0,0.13632608]
[1610170930870,1.59137388,39798.0,39797.0,0.00023824]
[1610170931872,0.13632608,39799.0,39797.0,0.00023824]
[1610170932073,1.59159008,39798.0,39797.0,0.00023824]
[1610170932475,2.14195362,39798.0,39797.0,0.00023824]
[1610170932774,2.13005362,39798.0,39797.0,0.00023824]
[1610170933574,0.9188444,39798.0,39797.0,0.00023824]
[1610170933875,1.37709031,39798.0,39797.0,0.00023824]
[1610170934275,1.37709031,39798.0,39797.0,0.01596853]
[1610170934876,1.37709031,39798.0,39797.0,0.00023824]
[1610170935477,0.55036354,39798.0,39797.0,0.00023824]
[1610170935679,1.37617951,39798.0,39797.0,0.00023824]
[1610170935876,1.36457951,39798.0,39797.0,0.00023824]
[1610170936478,1.36457951,39798.0,39793.0,0.01596937]
[1610170936676,1.36457951,39798.0,39797.0,0.00023824]
[1610170936878,0.36847927,39798.0,39797.0,0.00023824]
[1610170937078,0.36847927,39798.0,39794.0,0.00023824]
[1610170937279,0.45787013,39798.0,39797.0,0.00023824]
[1610170937478,0.45787013,39798.0,39794.0,0.01596971]
[1610170937780,0.45787013,39798.0,39797.0,0.00023824]
[1610170937979,0.45787013,39798.0,39795.0,0.00023824]
[1610170938282,0.45787013,39798.0,39797.0,0.00023824]
[1610170938481,0.97597013,39798.0,39796.0,0.00023824]
[1610170938680,0.13632608,39797.0,39796.0,0.00023824]
[1610170938881,0.13632608,39797.0,39787.0,1.0]
[1610170938882,0.12442608,39797.0,39787.0,1.0]
[1610170939082,4.27452608,39797.0,39796.0,0.00023824]
[1610170939281,4.27452608,39797.0,39788.0,0.01597088]
[1610170939682,6.50998088,39797.0,39796.0,0.00023826]
[1610170939883,6.50998088,39797.0,39789.0,0.00023826]
[1610170940084,6.50998088,39797.0,39796.0,0.00023828]
[1610170940485,0.85579294,39792.0,39790.0,0.00023828]
[1610170940684,0.13632608,39791.0,39787.0,1.0]
[1610170940888,1.91246275,39791.0,39779.0,0.13632608]
[1610170941084,0.45820287,39788.0,39779.0,0.13632608]
[1610170941284,0.45820287,39788.0,39776.0,4.7433]
[1610170941485,0.85444176,39785.0,39780.0,0.00023833]
[1610170941686,0.85444176,39785.0,39777.0,0.00023833]
[1610170941887,0.45772087,39781.0,39776.0,4.7433]
[1610170942085,0.44542087,39781.0,39776.0,4.7433]
[1610170942285,0.56680087,39781.0,39777.0,0.00023834]
[1610170942487,0.12138,39781.0,39777.0,0.00023834]
[1610170942685,0.13632608,39778.0,39777.0,0.00023834]
[1610170943286,3.62077634,39778.0,39777.0,0.00023834]
[1610170943488,3.62077634,39778.0,39776.0,0.00023836]
[1610170943687,4.84385362,39778.0,39776.0,0.00023836]
[1610170943886,4.84385362,39778.0,39777.0,0.00023836]
[1610170944087,3.25212608,39778.0,39777.0,0.00023836]